[Event "*** Titled Tuesday Blitz"]
[Site "Chess.com"]
[Date "2019.01.01"]
[Round "7"]
[White "Blitzstream"]
[Black "VNeimer"]
[Result "1-0"]
[WhiteElo "2556"]
[BlackElo "2409"]
[TimeControl "180+2"]
[EndTime "14:37:56 PST"]
[Termination "Blitzstream won by resignation"]

1. e4 {[%clk 0:03:01.9]} 1... c5 {[%clk 0:03:00.7]} 2. Nf3 {[%clk 0:03:02.5]}
2... Nc6 {[%clk 0:03:01.8]} 3. d4 {[%clk 0:02:56.8]} 3... cxd4 {[%clk
0:03:03.7]} 4. Nxd4 {[%clk 0:02:58.2]} 4... e5 {[%clk 0:03:02.7]} 5. Nb5 {[%clk
0:02:58.9]} 5... d6 {[%clk 0:03:01.2]} 6. N1c3 {[%clk 0:03:00.1]} 6... a6 {[%clk
0:02:56.5]} 7. Na3 {[%clk 0:03:00.8]} 7... Be7 {[%clk 0:02:51.2]} 8. Nc4 {[%clk
0:02:59.7]} 8... b5 {[%clk 0:02:47.5]} 9. Ne3 {[%clk 0:03:00.5]} 9... Nf6 {[%clk
0:02:46.3]} 10. f3 {[%clk 0:02:56.9]} 10... O-O {[%clk 0:02:42]} 11. Be2 {[%clk
0:02:55.7]} 11... Be6 {[%clk 0:02:38]} 12. O-O {[%clk 0:02:56.2]} 12... Qb6
{[%clk 0:02:32]} 13. Kh1 {[%clk 0:02:55.8]} 13... Rac8 {[%clk 0:02:29.7]} 14.
Ned5 {[%clk 0:02:51.7]} 14... Bxd5 {[%clk 0:02:29]} 15. exd5 {[%clk 0:02:28.4]}
15... Nd4 {[%clk 0:02:06.9]} 16. Bg5 {[%clk 0:01:53]} 16... b4 {[%clk
0:01:53.9]} 17. Bxf6 {[%clk 0:01:53.7]} 17... Bxf6 {[%clk 0:01:43.5]} 18. Ne4
{[%clk 0:01:54.5]} 18... Nxc2 {[%clk 0:01:38.7]} 19. Nxf6+ {[%clk 0:01:52.2]}
19... gxf6 {[%clk 0:01:40.6]} 20. Bd3 {[%clk 0:01:34.7]} 20... Nxa1 {[%clk
0:01:39.2]} 21. f4 {[%clk 0:01:33.5]} 21... Qe3 {[%clk 0:01:13.5]} 22. Bf5
{[%clk 0:01:04.6]} 22... Rfd8 {[%clk 0:00:13.3]} 23. Bxc8 {[%clk 0:01:04.9]}
23... Rxc8 {[%clk 0:00:08.1]} 24. Qg4+ {[%clk 0:01:05.1]} 24... Kh8 {[%clk
0:00:09.4]} 25. Qxc8+ {[%clk 0:01:06]} 25... Kg7 {[%clk 0:00:10.9]} 26. fxe5
{[%clk 0:00:59]} 1-0

[Event "*** Titled Tuesday Blitz"]
[Site "Chess.com"]
[Date "2019.01.01"]
[Round "7"]
[White "PulpanJ"]
[Black "pulvettd"]
[Result "0-1"]
[WhiteElo "2607"]
[BlackElo "2494"]
[TimeControl "180+2"]
[EndTime "14:38:14 PST"]
[Termination "pulvettd won by resignation"]

1. e4 {[%clk 0:02:58.5]} 1... e6 {[%clk 0:03:01.1]} 2. d4 {[%clk 0:02:28.1]}
2... d5 {[%clk 0:03:01.7]} 3. exd5 {[%clk 0:02:30]} 3... exd5 {[%clk 0:03:01.8]}
4. Bd3 {[%clk 0:02:22.9]} 4... Bd6 {[%clk 0:03:01.7]} 5. Ne2 {[%clk 0:02:19.4]}
5... Nc6 {[%clk 0:02:56.5]} 6. Nbc3 {[%clk 0:02:04.8]} 6... Nge7 {[%clk
0:02:52.8]} 7. Bf4 {[%clk 0:01:59]} 7... Bxf4 {[%clk 0:02:44.3]} 8. Nxf4 {[%clk
0:01:58.9]} 8... Nxd4 {[%clk 0:02:39.3]} 9. Bxh7 {[%clk 0:01:52.9]} 9... c5
{[%clk 0:02:21.1]} 10. Bd3 {[%clk 0:01:49]} 10... Qd6 {[%clk 0:02:22.1]} 11. Qd2
{[%clk 0:01:41.1]} 11... Bg4 {[%clk 0:02:08.1]} 12. h3 {[%clk 0:01:33.2]} 12...
Bf3 {[%clk 0:01:55.2]} 13. Qe3 {[%clk 0:01:08.2]} 13... g5 {[%clk 0:01:47.3]}
14. Nfe2 {[%clk 0:00:35.4]} 14... Bxg2 {[%clk 0:01:44.8]} 15. Nxd4 {[%clk
0:00:25.7]} 15... cxd4 {[%clk 0:01:46.7]} 16. Qxd4 {[%clk 0:00:27.5]} 16... Rh4
{[%clk 0:01:42.6]} 17. Bb5+ {[%clk 0:00:09.9]} 17... Kf8 {[%clk 0:01:40.4]} 18.
Qxh4 {[%clk 0:00:03.2]} 18... gxh4 {[%clk 0:01:38.1]} 19. Rg1 {[%clk 0:00:05.1]}
19... Qe5+ {[%clk 0:01:35.8]} 20. Be2 {[%clk 0:00:05.6]} 20... Bf3 {[%clk
0:01:28.6]} 21. Kf1 {[%clk 0:00:02.9]} 21... Bxe2+ {[%clk 0:01:27.1]} 22. Nxe2
{[%clk 0:00:04.8]} 22... Qxb2 {[%clk 0:01:24.7]} 23. Re1 {[%clk 0:00:04.6]}
23... Qxc2 {[%clk 0:01:25.1]} 24. Kg2 {[%clk 0:00:04.5]} 24... Ng6 {[%clk
0:01:21.5]} 25. Kh1 {[%clk 0:00:02.5]} 25... Re8 {[%clk 0:01:18.4]} 26. Nd4
{[%clk 0:00:02.6]} 26... Qd3 {[%clk 0:01:17.3]} 27. Rxe8+ {[%clk 0:00:03.1]}
27... Kxe8 {[%clk 0:01:19.2]} 28. Re1+ {[%clk 0:00:04.2]} 28... Kd7 {[%clk
0:01:18.9]} 29. Ne2 {[%clk 0:00:04.8]} 29... Qxh3+ {[%clk 0:01:19.2]} 30. Kg1
{[%clk 0:00:05.3]} 30... Qg4+ {[%clk 0:01:19.9]} 31. Kh2 {[%clk 0:00:05.5]}
31... h3 {[%clk 0:01:16.6]} 32. Ng3 {[%clk 0:00:06.1]} 32... Nh4 {[%clk
0:01:15.4]} 33. Re5 {[%clk 0:00:05.2]} 0-1

[Event "*** Titled Tuesday Blitz"]
[Site "Chess.com"]
[Date "2019.01.01"]
[Round "7"]
[White "mishanick"]
[Black "MikePerelshteyn"]
[Result "1-0"]
[WhiteElo "2977"]
[BlackElo "2555"]
[TimeControl "180+2"]
[EndTime "14:38:26 PST"]
[Termination "mishanick won by resignation"]

1. d4 {[%clk 0:03:01.9]} 1... Nf6 {[%clk 0:03:00.3]} 2. c4 {[%clk 0:03:03.2]}
2... g6 {[%clk 0:03:01.6]} 3. Nf3 {[%clk 0:03:03.3]} 3... Bg7 {[%clk 0:03:02.8]}
4. Nc3 {[%clk 0:03:05]} 4... O-O {[%clk 0:03:03.8]} 5. e4 {[%clk 0:03:06.3]}
5... d6 {[%clk 0:03:05.1]} 6. Be2 {[%clk 0:03:08]} 6... Nbd7 {[%clk 0:03:06.1]}
7. O-O {[%clk 0:03:07.8]} 7... e5 {[%clk 0:03:07.3]} 8. d5 {[%clk 0:03:08.9]}
8... Nc5 {[%clk 0:03:08]} 9. Nd2 {[%clk 0:03:10.2]} 9... a5 {[%clk 0:03:08.6]}
10. b3 {[%clk 0:03:11.5]} 10... Bh6 {[%clk 0:03:08.9]} 11. Qc2 {[%clk
0:03:11.7]} 11... Ne8 {[%clk 0:03:02.4]} 12. Rb1 {[%clk 0:03:11.3]} 12... f5
{[%clk 0:03:02.6]} 13. a3 {[%clk 0:03:12.7]} 13... Nf6 {[%clk 0:02:57.7]} 14. b4
{[%clk 0:03:12.4]} 14... axb4 {[%clk 0:02:58.2]} 15. axb4 {[%clk 0:03:14.2]}
15... Bxd2 {[%clk 0:02:46.5]} 16. Bxd2 {[%clk 0:03:09.8]} 16... Ncxe4 {[%clk
0:02:46.6]} 17. Bh6 {[%clk 0:03:10.1]} 17... Nxc3 {[%clk 0:02:42.6]} 18. Qxc3
{[%clk 0:03:12]} 18... Rf7 {[%clk 0:02:36.1]} 19. Ra1 {[%clk 0:03:12.5]} 19...
Rb8 {[%clk 0:02:25]} 20. Rfd1 {[%clk 0:03:12]} 20... Ne4 {[%clk 0:02:11.7]} 21.
Qc2 {[%clk 0:03:09.2]} 21... Nxf2 {[%clk 0:02:00.2]} 22. Be3 {[%clk 0:03:03.5]}
22... Nxd1 {[%clk 0:02:00]} 23. Qxd1 {[%clk 0:03:03.6]} 23... f4 {[%clk
0:01:57.1]} 24. Bf2 {[%clk 0:03:04.6]} 24... Bf5 {[%clk 0:01:53.7]} 25. c5
{[%clk 0:03:05.5]} 25... Ra8 {[%clk 0:01:53.3]} 26. Rc1 {[%clk 0:03:05.8]} 26...
Qf6 {[%clk 0:01:40.3]} 27. c6 {[%clk 0:03:06.7]} 27... b6 {[%clk 0:01:37.1]} 28.
h3 {[%clk 0:02:57.9]} 28... Be4 {[%clk 0:01:36.9]} 29. Bf1 {[%clk 0:02:57.9]}
29... Qg5 {[%clk 0:01:35]} 30. Qd2 {[%clk 0:02:57.3]} 30... h6 {[%clk
0:01:20.1]} 31. Kh2 {[%clk 0:02:56.5]} 31... Kh7 {[%clk 0:01:13.6]} 32. Re1
{[%clk 0:02:56.8]} 32... Ra3 {[%clk 0:01:12.6]} 33. Rxe4 {[%clk 0:02:55.1]}
33... f3 {[%clk 0:01:01.4]} 34. Be3 {[%clk 0:02:43.8]} 34... fxg2 {[%clk
0:00:58.5]} 35. Bxg2 {[%clk 0:02:45.7]} 35... Qf5 {[%clk 0:00:46.6]} 36. Rg4
{[%clk 0:02:42.7]} 36... e4 {[%clk 0:00:37.8]} 37. Bxe4 {[%clk 0:02:37.9]} 37...
Qe5+ {[%clk 0:00:36]} 38. Kg2 {[%clk 0:02:39.3]} 38... Rf6 {[%clk 0:00:24.8]}
39. Bd4 {[%clk 0:02:28.4]} 39... Ra2 {[%clk 0:00:25.5]} 40. Qxa2 {[%clk
0:02:26.6]} 40... Qxd4 {[%clk 0:00:27]} 41. Qc2 {[%clk 0:02:22.5]} 41... Kg7
{[%clk 0:00:26.1]} 42. Bxg6 {[%clk 0:02:20.9]} 42... Qe3 {[%clk 0:00:22.4]} 43.
Bh7+ {[%clk 0:02:14]} 43... Kf8 {[%clk 0:00:22.1]} 44. Rg8+ {[%clk 0:02:08.5]}
44... Kf7 {[%clk 0:00:18]} 45. Rg3 {[%clk 0:02:08.8]} 45... Qd4 {[%clk
0:00:13.1]} 46. Bg8+ {[%clk 0:02:09.4]} 46... Kf8 {[%clk 0:00:12.8]} 47. Be6
{[%clk 0:02:10.5]} 47... Qxb4 {[%clk 0:00:13.1]} 48. Rg8+ {[%clk 0:02:08.3]}
48... Ke7 {[%clk 0:00:14.1]} 49. Qh7+ {[%clk 0:02:09.9]} 1-0

[Event "*** Titled Tuesday Blitz"]
[Site "Chess.com"]
[Date "2019.01.01"]
[Round "7"]
[White "Hieronymus00"]
[Black "Shivagami"]
[Result "0-1"]
[WhiteElo "2132"]
[BlackElo "2145"]
[TimeControl "180+2"]
[EndTime "14:38:26 PST"]
[Termination "Shivagami won on time"]

1. e4 {[%clk 0:03:01.9]} 1... Nc6 {[%clk 0:02:58.9]} 2. Nf3 {[%clk 0:03:01]}
2... d6 {[%clk 0:02:59.4]} 3. d4 {[%clk 0:03:01.5]} 3... Nf6 {[%clk 0:03:00.1]}
4. Nc3 {[%clk 0:03:01.1]} 4... Bg4 {[%clk 0:03:01.2]} 5. Be3 {[%clk 0:02:59.9]}
5... e5 {[%clk 0:03:02.4]} 6. d5 {[%clk 0:02:52.8]} 6... Ne7 {[%clk 0:03:03]} 7.
h3 {[%clk 0:02:48.5]} 7... Bd7 {[%clk 0:03:02.2]} 8. Be2 {[%clk 0:02:28.3]} 8...
Ng6 {[%clk 0:03:01.4]} 9. g3 {[%clk 0:02:27.2]} 9... Be7 {[%clk 0:03:01.5]} 10.
Qd2 {[%clk 0:02:18.8]} 10... O-O {[%clk 0:02:59.9]} 11. O-O-O {[%clk 0:02:19.4]}
11... c5 {[%clk 0:03:00.7]} 12. h4 {[%clk 0:01:49.6]} 12... h5 {[%clk
0:02:53.7]} 13. Ng5 {[%clk 0:01:31]} 13... a6 {[%clk 0:02:50.8]} 14. f4 {[%clk
0:01:26.3]} 14... exf4 {[%clk 0:02:47.3]} 15. gxf4 {[%clk 0:01:26.8]} 15... Ng4
{[%clk 0:02:47.5]} 16. Rdg1 {[%clk 0:01:09.2]} 16... b5 {[%clk 0:02:42.2]} 17.
Nd1 {[%clk 0:00:46]} 17... Bf6 {[%clk 0:02:06.9]} 18. Nf2 {[%clk 0:00:33.6]}
18... Nxe3 {[%clk 0:02:01.6]} 19. Qxe3 {[%clk 0:00:34.7]} 19... Bd4 {[%clk
0:01:59.8]} 20. Qg3 {[%clk 0:00:33.4]} 20... Qf6 {[%clk 0:01:56.3]} 21. Nd3
{[%clk 0:00:30.9]} 21... c4 {[%clk 0:01:55.5]} 22. e5 {[%clk 0:00:27.8]} 22...
dxe5 {[%clk 0:01:53.3]} 23. fxe5 {[%clk 0:00:26.6]} 23... Nxe5 {[%clk
0:01:41.8]} 24. Nf4 {[%clk 0:00:27.1]} 24... Bxb2+ {[%clk 0:01:15.2]} 25. Kb1
{[%clk 0:00:26.3]} 25... Ng6 {[%clk 0:01:05.1]} 26. Nxh5 {[%clk 0:00:22.5]}
26... Qd4 {[%clk 0:01:05.3]} 27. Nf3 {[%clk 0:00:15.8]} 27... Qc3 {[%clk
0:01:06.1]} 28. Nf4 {[%clk 0:00:15.7]} 28... Qb4 {[%clk 0:01:05.5]} 29. Nd2
{[%clk 0:00:09.4]} 29... Be5+ {[%clk 0:01:02.5]} 30. Nb3 {[%clk 0:00:02.9]}
30... Bxf4 {[%clk 0:01:03.5]} 0-1

[Event "*** Titled Tuesday Blitz"]
[Site "Chess.com"]
[Date "2019.01.01"]
[Round "7"]
[White "yobdc"]
[Black "Martins-BR"]
[Result "1-0"]
[WhiteElo "2163"]
[BlackElo "2211"]
[TimeControl "180+2"]
[EndTime "14:38:37 PST"]
[Termination "yobdc won by resignation"]

1. e4 {[%clk 0:03:01.9]} 1... c5 {[%clk 0:02:59.8]} 2. Nf3 {[%clk 0:03:00.7]}
2... e6 {[%clk 0:02:58.8]} 3. c3 {[%clk 0:02:53.8]} 3... Nf6 {[%clk 0:02:58]} 4.
e5 {[%clk 0:02:54.7]} 4... Nd5 {[%clk 0:02:58.8]} 5. d4 {[%clk 0:02:56.3]} 5...
cxd4 {[%clk 0:03:00.1]} 6. cxd4 {[%clk 0:02:57.9]} 6... d6 {[%clk 0:03:01]} 7.
Nc3 {[%clk 0:02:59.2]} 7... Nxc3 {[%clk 0:03:01]} 8. bxc3 {[%clk 0:03:00.2]}
8... Qc7 {[%clk 0:03:01.8]} 9. Bd2 {[%clk 0:02:59.2]} 9... Nd7 {[%clk
0:03:00.9]} 10. exd6 {[%clk 0:02:59.4]} 10... Bxd6 {[%clk 0:03:01.1]} 11. Bd3
{[%clk 0:02:59.3]} 11... b6 {[%clk 0:03:00.8]} 12. Ng5 {[%clk 0:02:53.8]} 12...
h6 {[%clk 0:02:58.4]} 13. Nxf7 {[%clk 0:02:41.9]} 13... Kxf7 {[%clk 0:02:47.2]}
14. Qf3+ {[%clk 0:02:42.9]} 14... Nf6 {[%clk 0:02:47.8]} 15. Qxa8 {[%clk
0:02:43.4]} 15... Rf8 {[%clk 0:02:44.6]} 16. Qf3 {[%clk 0:02:40.5]} 16... Bb7
{[%clk 0:02:41.8]} 17. Qh3 {[%clk 0:02:40.1]} 17... Bd5 {[%clk 0:02:38.7]} 18.
O-O {[%clk 0:02:40.1]} 18... Bf4 {[%clk 0:02:30.1]} 19. Bxf4 {[%clk 0:02:39]}
19... Qxf4 {[%clk 0:02:30.2]} 20. Rae1 {[%clk 0:02:38.2]} 20... Re8 {[%clk
0:01:50.5]} 21. Qe3 {[%clk 0:02:34.5]} 21... Qc7 {[%clk 0:01:46.9]} 22. f3
{[%clk 0:02:27.8]} 22... Bxa2 {[%clk 0:01:37.6]} 23. Ra1 {[%clk 0:02:16.9]}
23... Bd5 {[%clk 0:01:30.2]} 24. Rfc1 {[%clk 0:02:16]} 24... a5 {[%clk
0:01:27.9]} 25. c4 {[%clk 0:02:16.9]} 25... Bb7 {[%clk 0:01:25.2]} 26. Rab1
{[%clk 0:02:11.7]} 26... Rd8 {[%clk 0:01:23.6]} 27. Bf1 {[%clk 0:02:08.3]} 27...
Bc8 {[%clk 0:01:17.4]} 28. d5 {[%clk 0:01:35.3]} 28... exd5 {[%clk 0:01:05]} 29.
Qxb6 {[%clk 0:01:36.2]} 29... Qxb6+ {[%clk 0:01:03.7]} 30. Rxb6 {[%clk
0:01:38.1]} 30... d4 {[%clk 0:01:02.1]} 31. Bd3 {[%clk 0:01:36.1]} 31... g6
{[%clk 0:00:54.4]} 32. Ra1 {[%clk 0:01:27]} 32... Bf5 {[%clk 0:00:52.8]} 33.
Rb7+ {[%clk 0:01:06.3]} 33... Kf8 {[%clk 0:00:42.7]} 34. Rb3 {[%clk 0:01:04.5]}
34... Nd7 {[%clk 0:00:19.9]} 35. Rxa5 {[%clk 0:01:01.3]} 35... Bxd3 {[%clk
0:00:15.7]} 36. Rxd3 {[%clk 0:01:03.2]} 36... Rc8 {[%clk 0:00:15.7]} 37. Rxd4
{[%clk 0:01:03.2]} 37... Nf6 {[%clk 0:00:15.7]} 38. Ra7 {[%clk 0:01:03.8]} 1-0

[Event "*** Titled Tuesday Blitz"]
[Site "Chess.com"]
[Date "2019.01.01"]
[Round "7"]
[White "snowlord"]
[Black "xamax2000"]
[Result "1-0"]
[WhiteElo "2696"]
[BlackElo "2518"]
[TimeControl "180+2"]
[EndTime "14:38:43 PST"]
[Termination "snowlord won on time"]

1. e4 {[%clk 0:03:01.9]} 1... e5 {[%clk 0:03:00.2]} 2. Nf3 {[%clk 0:03:03.3]}
2... Nc6 {[%clk 0:03:01.7]} 3. Bb5 {[%clk 0:03:03.3]} 3... a6 {[%clk 0:03:01.4]}
4. Ba4 {[%clk 0:03:04.5]} 4... Nf6 {[%clk 0:03:02.9]} 5. O-O {[%clk 0:03:05.5]}
5... Bc5 {[%clk 0:03:03.8]} 6. c3 {[%clk 0:03:05.1]} 6... b5 {[%clk 0:03:03]} 7.
Bc2 {[%clk 0:03:06.6]} 7... d5 {[%clk 0:03:03.1]} 8. a4 {[%clk 0:03:07.9]} 8...
dxe4 {[%clk 0:02:59.8]} 9. axb5 {[%clk 0:03:09.1]} 9... exf3 {[%clk 0:02:58.9]}
10. Qxf3 {[%clk 0:03:10.2]} 10... e4 {[%clk 0:02:50.6]} 11. Bxe4 {[%clk
0:03:04.7]} 11... Ne5 {[%clk 0:02:49.8]} 12. Qe2 {[%clk 0:02:50.1]} 12... O-O
{[%clk 0:01:44.1]} 13. d4 {[%clk 0:02:13.3]} 13... Re8 {[%clk 0:00:51.9]} 14.
Bxa8 {[%clk 0:02:05.8]} 14... Bg4 {[%clk 0:00:48.6]} 15. Qc2 {[%clk 0:01:16.6]}
15... Qxa8 {[%clk 0:00:36.6]} 16. dxe5 {[%clk 0:01:13.9]} 16... Rxe5 {[%clk
0:00:18.1]} 17. Rxa6 {[%clk 0:01:14.6]} 17... Qd5 {[%clk 0:00:15]} 18. c4 {[%clk
0:01:08.2]} 18... Qb7 {[%clk 0:00:12.5]} 19. Be3 {[%clk 0:01:03.8]} 19... Bxe3
{[%clk 0:00:12.5]} 20. fxe3 {[%clk 0:01:05.5]} 20... Rg5 {[%clk 0:00:12.9]} 21.
Qd2 {[%clk 0:00:49.1]} 21... h5 {[%clk 0:00:12.5]} 22. Rc6 {[%clk 0:00:41.6]}
22... Bh3 {[%clk 0:00:11.2]} 23. Rf2 {[%clk 0:00:40.5]} 23... Ne4 {[%clk
0:00:10.4]} 24. Qd8+ {[%clk 0:00:41.1]} 24... Kh7 {[%clk 0:00:12]} 25. Nc3
{[%clk 0:00:38]} 25... Qa7 {[%clk 0:00:06]} 26. Qd3 {[%clk 0:00:21.9]} 1-0

[Event "*** Titled Tuesday Blitz"]
[Site "Chess.com"]
[Date "2019.01.01"]
[Round "7"]
[White "gemarin"]
[Black "viktorko131"]
[Result "0-1"]
[WhiteElo "2077"]
[BlackElo "2098"]
[TimeControl "180+2"]
[EndTime "14:38:44 PST"]
[Termination "viktorko131 won on time"]

1. e4 {[%clk 0:02:16.3]} 1... c5 {[%clk 0:03:00.2]} 2. Nf3 {[%clk 0:02:13.1]}
2... Nc6 {[%clk 0:03:01]} 3. Nc3 {[%clk 0:02:09.7]} 3... e5 {[%clk 0:02:55.4]}
4. Bc4 {[%clk 0:02:07.3]} 4... Be7 {[%clk 0:02:55.1]} 5. O-O {[%clk 0:02:07.5]}
5... d6 {[%clk 0:02:52.2]} 6. h3 {[%clk 0:02:07.5]} 6... Nf6 {[%clk 0:02:42.6]}
7. d3 {[%clk 0:02:07.6]} 7... O-O {[%clk 0:02:40.6]} 8. a3 {[%clk 0:02:07.1]}
8... Rb8 {[%clk 0:02:07.3]} 9. Nh2 {[%clk 0:01:46.4]} 9... Nd4 {[%clk
0:01:53.4]} 10. f4 {[%clk 0:01:42]} 10... exf4 {[%clk 0:01:29]} 11. Bxf4 {[%clk
0:01:38.2]} 11... b5 {[%clk 0:01:24.4]} 12. Ba2 {[%clk 0:01:38.6]} 12... Be6
{[%clk 0:01:18.5]} 13. Nf3 {[%clk 0:01:21]} 13... Bxa2 {[%clk 0:01:16.3]} 14.
Nxd4 {[%clk 0:01:05.5]} 14... cxd4 {[%clk 0:01:16.6]} 15. Nxa2 {[%clk
0:01:05.8]} 15... Rc8 {[%clk 0:01:09.5]} 16. Bg5 {[%clk 0:01:03.3]} 16... Qc7
{[%clk 0:00:31.6]} 17. Rc1 {[%clk 0:00:48.7]} 17... Nd5 {[%clk 0:00:28.2]} 18.
Bxe7 {[%clk 0:00:45.1]} 18... Ne3 {[%clk 0:00:26.6]} 19. Qh5 {[%clk 0:00:32.8]}
19... Qxe7 {[%clk 0:00:27.6]} 20. Rf2 {[%clk 0:00:32.9]} 20... Qe5 {[%clk
0:00:17.1]} 21. Qh4 {[%clk 0:00:21.4]} 21... a5 {[%clk 0:00:16.3]} 22. Re2
{[%clk 0:00:15.2]} 22... f5 {[%clk 0:00:13]} 23. exf5 {[%clk 0:00:12.7]} 23...
Rxf5 {[%clk 0:00:10.3]} 24. c3 {[%clk 0:00:11.8]} 24... Rcf8 {[%clk 0:00:10.2]}
0-1

[Event "*** Titled Tuesday Blitz"]
[Site "Chess.com"]
[Date "2019.01.01"]
[Round "7"]
[White "tomozupan"]
[Black "Karina_Oparina"]
[Result "1/2-1/2"]
[WhiteElo "2188"]
[BlackElo "2058"]
[TimeControl "180+2"]
[EndTime "14:38:51 PST"]
[Termination "Game drawn by repetition"]

1. d4 {[%clk 0:03:01.9]} 1... Nf6 {[%clk 0:02:59.3]} 2. Bg5 {[%clk 0:03:01.8]}
2... e6 {[%clk 0:02:57.2]} 3. e4 {[%clk 0:03:01.9]} 3... h6 {[%clk 0:02:57.1]}
4. Bxf6 {[%clk 0:03:01.4]} 4... Qxf6 {[%clk 0:02:57.7]} 5. Nf3 {[%clk
0:03:02.7]} 5... d5 {[%clk 0:02:58.4]} 6. e5 {[%clk 0:02:49.2]} 6... Qd8 {[%clk
0:02:58.3]} 7. Bd3 {[%clk 0:02:44.1]} 7... Nd7 {[%clk 0:02:55.4]} 8. O-O {[%clk
0:02:39.9]} 8... c5 {[%clk 0:02:54.9]} 9. c3 {[%clk 0:02:40.4]} 9... Be7 {[%clk
0:02:54.4]} 10. Nbd2 {[%clk 0:02:40.7]} 10... O-O {[%clk 0:02:54.4]} 11. Ne1
{[%clk 0:02:35.8]} 11... b6 {[%clk 0:02:48.4]} 12. f4 {[%clk 0:02:36]} 12... a5
{[%clk 0:02:41.5]} 13. f5 {[%clk 0:02:36.4]} 13... Ba6 {[%clk 0:02:39.9]} 14.
Bxa6 {[%clk 0:02:32.9]} 14... Rxa6 {[%clk 0:02:40.6]} 15. Qg4 {[%clk 0:02:32.3]}
15... exf5 {[%clk 0:02:40.6]} 16. Qxf5 {[%clk 0:02:32.6]} 16... g6 {[%clk
0:02:33.2]} 17. Qh3 {[%clk 0:02:27.3]} 17... b5 {[%clk 0:02:25.8]} 18. Ndf3
{[%clk 0:02:08.9]} 18... Kg7 {[%clk 0:02:21.4]} 19. Nd3 {[%clk 0:02:06.5]} 19...
cxd4 {[%clk 0:02:09.2]} 20. cxd4 {[%clk 0:01:49.1]} 20... Qb6 {[%clk 0:01:59.1]}
21. Rac1 {[%clk 0:01:46.8]} 21... Ra7 {[%clk 0:01:49.2]} 22. Nf4 {[%clk
0:01:42.6]} 22... Nxe5 {[%clk 0:01:36.2]} 23. Rcd1 {[%clk 0:00:37.8]} 23...
Nxf3+ {[%clk 0:01:23.9]} 24. Qxf3 {[%clk 0:00:38.2]} 24... Rd7 {[%clk
0:01:19.7]} 25. Nxd5 {[%clk 0:00:34.2]} 25... Qb7 {[%clk 0:01:14.8]} 26. Nxe7
{[%clk 0:00:22]} 26... Qxf3 {[%clk 0:01:06.5]} 27. Rxf3 {[%clk 0:00:22.4]} 27...
Rxe7 {[%clk 0:01:07.3]} 28. d5 {[%clk 0:00:23.3]} 28... Rd8 {[%clk 0:01:07.5]}
29. d6 {[%clk 0:00:23.7]} 29... Red7 {[%clk 0:01:08.5]} 30. Rfd3 {[%clk
0:00:24.3]} 30... f5 {[%clk 0:01:03.5]} 31. Kf2 {[%clk 0:00:23.1]} 31... Kf6
{[%clk 0:01:03.1]} 32. R1d2 {[%clk 0:00:22.1]} 32... Ke6 {[%clk 0:01:03.1]} 33.
Re2+ {[%clk 0:00:22]} 33... Kf6 {[%clk 0:01:03.7]} 34. Red2 {[%clk 0:00:21.6]}
34... Ke6 {[%clk 0:00:58.5]} 35. Re2+ {[%clk 0:00:22.4]} 35... Kf6 {[%clk
0:00:59.5]} 36. Red2 {[%clk 0:00:21.3]} 36... Ke6 {[%clk 0:01:00.4]} 37. Re2+
{[%clk 0:00:12.5]} 37... Kf6 {[%clk 0:01:01]} 38. Red2 {[%clk 0:00:13.2]} 38...
Ke6 {[%clk 0:01:01.8]} 39. Re2+ {[%clk 0:00:14.5]} 39... Kf6 {[%clk 0:01:02.5]}
40. Red2 {[%clk 0:00:14.7]} 1/2-1/2

[Event "*** Titled Tuesday Blitz"]
[Site "Chess.com"]
[Date "2019.01.01"]
[Round "7"]
[White "Anar_Aliakbarov"]
[Black "mersad_98"]
[Result "0-1"]
[WhiteElo "2462"]
[BlackElo "2636"]
[TimeControl "180+2"]
[EndTime "14:39:07 PST"]
[Termination "mersad_98 won by resignation"]

1. d4 {[%clk 0:02:58.9]} 1... Nf6 {[%clk 0:02:59.9]} 2. c4 {[%clk 0:02:58]} 2...
e6 {[%clk 0:03:01.2]} 3. Nf3 {[%clk 0:02:58.7]} 3... b6 {[%clk 0:03:02.3]} 4. g3
{[%clk 0:02:59.8]} 4... Ba6 {[%clk 0:03:03.8]} 5. Qc2 {[%clk 0:03:00.5]} 5...
Bb7 {[%clk 0:03:03]} 6. Bg2 {[%clk 0:03:01.4]} 6... c5 {[%clk 0:03:04.9]} 7. d5
{[%clk 0:03:02.4]} 7... exd5 {[%clk 0:03:06.8]} 8. cxd5 {[%clk 0:03:03.6]} 8...
Be7 {[%clk 0:03:05.6]} 9. O-O {[%clk 0:03:04.5]} 9... Nxd5 {[%clk 0:03:07.1]}
10. Rd1 {[%clk 0:03:03.9]} 10... Nc6 {[%clk 0:03:08.6]} 11. Qf5 {[%clk
0:03:00.8]} 11... Nf6 {[%clk 0:03:07.9]} 12. e4 {[%clk 0:03:01.6]} 12... g6
{[%clk 0:02:56.4]} 13. Qf4 {[%clk 0:03:01.9]} 13... O-O {[%clk 0:02:57.9]} 14.
e5 {[%clk 0:03:02.4]} 14... Nh5 {[%clk 0:02:54.4]} 15. Qh6 {[%clk 0:03:03.3]}
15... Qb8 {[%clk 0:02:06.4]} 16. Bg5 {[%clk 0:02:37]} 16... Nxe5 {[%clk
0:01:37.1]} 17. Bxe7 {[%clk 0:02:29.2]} 17... Nxf3+ {[%clk 0:01:37.6]} 18. Bxf3
{[%clk 0:02:29]} 18... Bxf3 {[%clk 0:01:39.5]} 19. Rxd7 {[%clk 0:02:18.6]} 19...
Re8 {[%clk 0:01:27.7]} 20. Nc3 {[%clk 0:01:14.3]} 20... Qc8 {[%clk 0:01:27]} 21.
Rd3 {[%clk 0:00:53.3]} 21... Rxe7 {[%clk 0:00:54.4]} 22. Rxf3 {[%clk 0:00:52.9]}
22... Qc6 {[%clk 0:00:55.8]} 23. Rd3 {[%clk 0:00:38.3]} 23... Rae8 {[%clk
0:00:57.1]} 24. Rdd1 {[%clk 0:00:39.8]} 24... Nf6 {[%clk 0:00:55.1]} 25. h4
{[%clk 0:00:38.5]} 25... b5 {[%clk 0:00:53.7]} 26. Qf4 {[%clk 0:00:30.7]} 26...
b4 {[%clk 0:00:52.2]} 27. f3 {[%clk 0:00:21.6]} 27... bxc3 {[%clk 0:00:41.5]}
28. Rd6 {[%clk 0:00:20.3]} 28... cxb2 {[%clk 0:00:42.6]} 29. Rb1 {[%clk
0:00:20.3]} 29... Re1+ {[%clk 0:00:41.8]} 30. Rxe1 {[%clk 0:00:21.2]} 30...
Rxe1+ {[%clk 0:00:42.7]} 31. Kh2 {[%clk 0:00:23.1]} 31... b1=Q {[%clk
0:00:38.4]} 32. Qxf6 {[%clk 0:00:18.9]} 32... Rh1+ {[%clk 0:00:38.1]} 0-1